[Event "*** Titled Tuesday Blitz"]
[Site "Chess.com"]
[Date "2020.04.14"]
[Round "9"]
[White "Faqade"]
[Black "FCChelsea14"]
[Result "1-0"]
[WhiteElo "2652"]
[BlackElo "2792"]
[TimeControl "180+1"]
[EndTime "11:43:36 PDT"]
[Termination "Faqade won by resignation"]

1. e4 {[%clk 0:03:00.9]} 1... c6 {[%clk 0:02:59.8]} 2. Nf3 {[%clk 0:02:59.7]}
2... d5 {[%clk 0:03:00]} 3. d3 {[%clk 0:03:00.4]} 3... Bg4 {[%clk 0:02:59.1]} 4.
h3 {[%clk 0:02:56.1]} 4... Bh5 {[%clk 0:02:58.5]} 5. Nbd2 {[%clk 0:02:53.7]}
5... Nd7 {[%clk 0:02:57.6]} 6. Be2 {[%clk 0:02:46.8]} 6... e6 {[%clk 0:02:56.8]}
7. O-O {[%clk 0:02:45.6]} 7... Bd6 {[%clk 0:02:56.5]} 8. d4 {[%clk 0:02:33.1]}
8... dxe4 {[%clk 0:02:55]} 9. Nxe4 {[%clk 0:02:34]} 9... Be7 {[%clk 0:02:49.3]}
10. Bf4 {[%clk 0:02:31.1]} 10... Nb6 {[%clk 0:02:46.2]} 11. a4 {[%clk
0:02:21.5]} 11... Nf6 {[%clk 0:02:45]} 12. Ng3 {[%clk 0:02:21.3]} 12... Bg6
{[%clk 0:02:41.4]} 13. Ne5 {[%clk 0:02:20.7]} 13... O-O {[%clk 0:02:40.1]} 14.
a5 {[%clk 0:02:20.2]} 14... Nbd5 {[%clk 0:02:39.5]} 15. Bd2 {[%clk 0:02:19.3]}
15... a6 {[%clk 0:02:32.4]} 16. c4 {[%clk 0:02:19.2]} 16... Nc7 {[%clk
0:02:25.4]} 17. Bc3 {[%clk 0:02:17]} 17... Nce8 {[%clk 0:02:09.1]} 18. Bf3
{[%clk 0:02:09.4]} 18... Nd6 {[%clk 0:02:07.8]} 19. Qe2 {[%clk 0:02:09]} 19...
Qc7 {[%clk 0:02:07.1]} 20. Rfd1 {[%clk 0:02:01.1]} 20... Rfd8 {[%clk 0:02:06.7]}
21. Rac1 {[%clk 0:02:00.1]} 21... Nf5 {[%clk 0:02:05.9]} 22. Nxf5 {[%clk
0:01:42.9]} 22... Bxf5 {[%clk 0:02:05.9]} 23. g4 {[%clk 0:01:42.9]} 23... Bg6
{[%clk 0:02:04]} 24. h4 {[%clk 0:01:43.4]} 24... h6 {[%clk 0:01:23.7]} 25. Nxg6
{[%clk 0:01:41.9]} 25... fxg6 {[%clk 0:01:24.6]} 26. g5 {[%clk 0:01:34]} 26...
hxg5 {[%clk 0:01:11.2]} 27. hxg5 {[%clk 0:01:33.3]} 27... Nh7 {[%clk 0:01:11.2]}
28. Qxe6+ {[%clk 0:01:23]} 28... Kh8 {[%clk 0:01:11.1]} 29. Qxg6 {[%clk
0:01:18.1]} 29... Qf4 {[%clk 0:01:08.4]} 30. Be4 {[%clk 0:00:42.3]} 30... Qg4+
{[%clk 0:01:07.4]} 31. Kf1 {[%clk 0:00:39.3]} 31... Nxg5 {[%clk 0:00:58.5]} 32.
d5 {[%clk 0:00:37.3]} 32... Bf6 {[%clk 0:00:41.6]} 33. Bxf6 {[%clk 0:00:33.4]}
33... gxf6 {[%clk 0:00:41.4]} 34. Qxf6+ {[%clk 0:00:33.3]} 34... Kg8 {[%clk
0:00:41.8]} 35. Qg6+ {[%clk 0:00:31.2]} 35... Kh8 {[%clk 0:00:38.6]} 36. Bf5
{[%clk 0:00:24.2]} 36... Qh4 {[%clk 0:00:27.2]} 37. Kg2 {[%clk 0:00:17.7]} 37...
Rg8 {[%clk 0:00:23]} 38. Rh1 {[%clk 0:00:17.3]} 38... Rxg6 {[%clk 0:00:22.5]}
39. Rxh4+ {[%clk 0:00:16.1]} 39... Kg7 {[%clk 0:00:22.9]} 40. Bxg6 {[%clk
0:00:15.4]} 40... Kxg6 {[%clk 0:00:23.8]} 41. dxc6 {[%clk 0:00:14.5]} 41... bxc6
{[%clk 0:00:24.7]} 42. Rd1 {[%clk 0:00:14.5]} 42... Nf7 {[%clk 0:00:22.1]} 43.
Rf4 {[%clk 0:00:13]} 43... Rb8 {[%clk 0:00:21]} 44. Rd2 {[%clk 0:00:12.5]} 44...
Re8 {[%clk 0:00:17.1]} 45. Rf3 {[%clk 0:00:11.7]} 45... Re5 {[%clk 0:00:14.9]}
46. b4 {[%clk 0:00:10.7]} 46... Re4 {[%clk 0:00:15.3]} 47. Rc3 {[%clk
0:00:08.8]} 47... Ne5 {[%clk 0:00:14.8]} 48. Rd6+ {[%clk 0:00:08.6]} 48... Kf5
{[%clk 0:00:15.2]} 49. b5 {[%clk 0:00:08.4]} 49... axb5 {[%clk 0:00:14.9]} 50.
cxb5 {[%clk 0:00:08.9]} 50... cxb5 {[%clk 0:00:15.8]} 51. Rd5 {[%clk 0:00:08.1]}
51... Ke6 {[%clk 0:00:14.2]} 52. Rxb5 {[%clk 0:00:07.6]} 52... Ng6 {[%clk
0:00:14.5]} 53. Re3 {[%clk 0:00:07.6]} 53... Nf4+ {[%clk 0:00:13.9]} 54. Kf3
{[%clk 0:00:07.2]} 1-0

[Event "*** Titled Tuesday Blitz"]
[Site "Chess.com"]
[Date "2020.04.14"]
[Round "9"]
[White "wild_cat99"]
[Black "Zmof"]
[Result "1-0"]
[WhiteElo "2568"]
[BlackElo "2334"]
[TimeControl "180+1"]
[EndTime "11:43:36 PDT"]
[Termination "wild_cat99 won by resignation"]

1. Nf3 {[%clk 0:03:00.9]} 1... f5 {[%clk 0:02:58.8]} 2. d4 {[%clk 0:02:59.3]}
2... Nf6 {[%clk 0:02:58.1]} 3. c4 {[%clk 0:02:59]} 3... d6 {[%clk 0:02:57.4]} 4.
Nc3 {[%clk 0:02:59.4]} 4... g6 {[%clk 0:02:58]} 5. g3 {[%clk 0:02:59.8]} 5...
Bg7 {[%clk 0:02:58.4]} 6. Bg2 {[%clk 0:03:00.7]} 6... O-O {[%clk 0:02:58.7]} 7.
O-O {[%clk 0:03:01.2]} 7... Qe8 {[%clk 0:02:58.6]} 8. Qc2 {[%clk 0:03:01.2]}
8... Qf7 {[%clk 0:02:55.2]} 9. b3 {[%clk 0:02:59.9]} 9... h6 {[%clk 0:02:53.1]}
10. d5 {[%clk 0:02:58.5]} 10... Na6 {[%clk 0:02:49]} 11. Bb2 {[%clk 0:02:53.9]}
11... Bd7 {[%clk 0:02:48.5]} 12. Rfd1 {[%clk 0:02:49.4]} 12... c6 {[%clk
0:02:45]} 13. Nd4 {[%clk 0:02:45.4]} 13... Rac8 {[%clk 0:02:40.6]} 14. a3 {[%clk
0:02:39.4]} 14... Nc5 {[%clk 0:02:36.7]} 15. b4 {[%clk 0:02:34.6]} 15... Nce4
{[%clk 0:02:36.5]} 16. Nxe4 {[%clk 0:02:34.6]} 16... Nxe4 {[%clk 0:02:33.1]} 17.
Bxe4 {[%clk 0:02:34.4]} 17... fxe4 {[%clk 0:02:33.6]} 18. Rf1 {[%clk 0:02:34.8]}
18... Bf5 {[%clk 0:02:31.5]} 19. dxc6 {[%clk 0:02:28.5]} 19... bxc6 {[%clk
0:02:29.9]} 20. Nxf5 {[%clk 0:01:58.4]} 20... gxf5 {[%clk 0:02:27]} 21. Bxg7
{[%clk 0:01:56.1]} 21... Qxg7 {[%clk 0:02:24.8]} 22. Kh1 {[%clk 0:01:56.1]}
22... Qe5 {[%clk 0:02:23.3]} 23. Qd2 {[%clk 0:01:55.4]} 23... Kh7 {[%clk
0:02:21.5]} 24. a4 {[%clk 0:01:44]} 24... f4 {[%clk 0:02:20.3]} 25. b5 {[%clk
0:01:13.5]} 25... Rf7 {[%clk 0:02:05.9]} 26. gxf4 {[%clk 0:01:05.5]} 26... Rxf4
{[%clk 0:02:04.3]} 27. Ra3 {[%clk 0:01:04.1]} 27... cxb5 {[%clk 0:02:00.4]} 28.
axb5 {[%clk 0:01:03.3]} 28... Rcf8 {[%clk 0:01:57.9]} 29. Rg3 {[%clk 0:01:02.8]}
29... Rxf2 {[%clk 0:01:50.1]} 30. Rfg1 {[%clk 0:01:02.7]} 30... Rf1 {[%clk
0:01:45.9]} 31. Qe3 {[%clk 0:01:01]} 31... Rxg1+ {[%clk 0:01:45.2]} 32. Qxg1
{[%clk 0:01:00.6]} 32... Rf7 {[%clk 0:01:23.7]} 33. Qxa7 {[%clk 0:00:58.5]}
33... Qf4 {[%clk 0:01:11.2]} 34. Qg1 {[%clk 0:00:53.4]} 34... Qf6 {[%clk
0:00:52.7]} 35. b6 {[%clk 0:00:52]} 35... e5 {[%clk 0:00:48.7]} 36. Rg8 {[%clk
0:00:48.3]} 36... Qf1 {[%clk 0:00:43]} 37. Qxf1 {[%clk 0:00:35.9]} 37... Rxf1+
{[%clk 0:00:42.2]} 38. Kg2 {[%clk 0:00:36.8]} 38... Rb1 {[%clk 0:00:42.9]} 39.
Rb8 {[%clk 0:00:37.1]} 39... Kg7 {[%clk 0:00:35]} 40. Kf2 {[%clk 0:00:36.9]}
40... Rb3 {[%clk 0:00:33.5]} 41. h4 {[%clk 0:00:34.1]} 41... Kh7 {[%clk
0:00:33]} 42. h5 {[%clk 0:00:33.7]} 42... Kg7 {[%clk 0:00:33.2]} 43. Ke1 {[%clk
0:00:28.4]} 43... e3 {[%clk 0:00:29.7]} 44. Kd1 {[%clk 0:00:27.6]} 44... Rb4
{[%clk 0:00:24.6]} 45. b7 {[%clk 0:00:27.1]} 45... Kh7 {[%clk 0:00:23.5]} 46.
Kc2 {[%clk 0:00:23.9]} 46... Kg7 {[%clk 0:00:15.5]} 47. Kd3 {[%clk 0:00:24.8]}
47... Rb6 {[%clk 0:00:15.6]} 48. Kxe3 {[%clk 0:00:24.4]} 48... Kh7 {[%clk
0:00:14.4]} 49. Ke4 {[%clk 0:00:24.5]} 49... Kg7 {[%clk 0:00:14.5]} 50. Kd5
{[%clk 0:00:24.6]} 50... Kh7 {[%clk 0:00:15.1]} 51. Ke6 {[%clk 0:00:21.2]} 51...
Kg7 {[%clk 0:00:15]} 52. Ke7 {[%clk 0:00:20.8]} 52... Kh7 {[%clk 0:00:14.3]} 53.
Kd8 {[%clk 0:00:17.5]} 53... Rb4 {[%clk 0:00:10.3]} 54. Rc8 {[%clk 0:00:11.6]}
54... Rxb7 {[%clk 0:00:09.4]} 55. Rc7+ {[%clk 0:00:12.2]} 55... Rxc7 {[%clk
0:00:10]} 56. Kxc7 {[%clk 0:00:13.1]} 1-0

[Event "*** Titled Tuesday Blitz"]
[Site "Chess.com"]
[Date "2020.04.14"]
[Round "9"]
[White "731291"]
[Black "ErikRonka"]
[Result "1-0"]
[WhiteElo "2618"]
[BlackElo "2411"]
[TimeControl "180+1"]
[EndTime "11:43:37 PDT"]
[Termination "731291 won on time"]

1. d4 {[%clk 0:03:00.9]} 1... d5 {[%clk 0:02:59.4]} 2. Nf3 {[%clk 0:02:58.8]}
2... Nf6 {[%clk 0:02:57.4]} 3. c4 {[%clk 0:02:59.1]} 3... c6 {[%clk 0:02:56.5]}
4. e3 {[%clk 0:02:58.8]} 4... e6 {[%clk 0:02:51.6]} 5. Nbd2 {[%clk 0:02:55.7]}
5... c5 {[%clk 0:02:45.3]} 6. cxd5 {[%clk 0:02:51.9]} 6... Nxd5 {[%clk
0:02:38.3]} 7. Bb5+ {[%clk 0:02:51.6]} 7... Bd7 {[%clk 0:02:37.9]} 8. Bxd7+
{[%clk 0:02:52]} 8... Nxd7 {[%clk 0:02:36.8]} 9. O-O {[%clk 0:02:52.1]} 9... Be7
{[%clk 0:02:35.1]} 10. b3 {[%clk 0:02:45.4]} 10... O-O {[%clk 0:02:34.7]} 11.
Bb2 {[%clk 0:02:45.3]} 11... Rc8 {[%clk 0:02:28.4]} 12. Rc1 {[%clk 0:02:44.1]}
12... cxd4 {[%clk 0:02:15.9]} 13. Bxd4 {[%clk 0:02:43.6]} 13... Qa5 {[%clk
0:01:58.5]} 14. Nc4 {[%clk 0:02:40.5]} 14... Qa6 {[%clk 0:01:56.7]} 15. Qd2
{[%clk 0:02:29.1]} 15... N7f6 {[%clk 0:01:52.7]} 16. Qa5 {[%clk 0:02:17.4]}
16... Qxa5 {[%clk 0:01:19.5]} 17. Nxa5 {[%clk 0:02:18.3]} 17... b6 {[%clk
0:01:14]} 18. Nc6 {[%clk 0:02:07.5]} 18... Ba3 {[%clk 0:01:13.5]} 19. Rc2 {[%clk
0:02:04.2]} 19... Rc7 {[%clk 0:00:35.5]} 20. Nfe5 {[%clk 0:01:52]} 20... Rfc8
{[%clk 0:00:34.1]} 21. f3 {[%clk 0:01:40.7]} 21... Kf8 {[%clk 0:00:28.4]} 22. e4
{[%clk 0:01:35.7]} 22... Nb4 {[%clk 0:00:27.5]} 23. Nxb4 {[%clk 0:01:31.7]}
23... Rxc2 {[%clk 0:00:25.7]} 24. Nxc2 {[%clk 0:01:32.6]} 24... Rxc2 {[%clk
0:00:26.2]} 25. Rf2 {[%clk 0:01:20.8]} 25... Rc1+ {[%clk 0:00:20.9]} 26. Rf1
{[%clk 0:01:19.1]} 26... Rc2 {[%clk 0:00:19.7]} 27. Ra1 {[%clk 0:01:01.1]} 27...
Ke7 {[%clk 0:00:09.9]} 28. Nc4 {[%clk 0:00:54.3]} 28... Bb4 {[%clk 0:00:08.5]}
29. a3 {[%clk 0:00:43.3]} 29... Bc3 {[%clk 0:00:08.9]} 30. Bxc3 {[%clk
0:00:43.1]} 30... Rxc3 {[%clk 0:00:09.8]} 31. Rb1 {[%clk 0:00:41.2]} 31... Nd7
{[%clk 0:00:10.3]} 32. Kf2 {[%clk 0:00:34.9]} 32... f6 {[%clk 0:00:10.2]} 33.
Ke2 {[%clk 0:00:34.3]} 33... Nc5 {[%clk 0:00:10.5]} 34. Nd2 {[%clk 0:00:34.4]}
34... Nd7 {[%clk 0:00:06.5]} 35. a4 {[%clk 0:00:33.8]} 35... Rc8 {[%clk
0:00:06.7]} 36. Nc4 {[%clk 0:00:32.2]} 36... Rc5 {[%clk 0:00:04.9]} 37. Rd1
{[%clk 0:00:31]} 37... a6 {[%clk 0:00:04.8]} 38. Rd2 {[%clk 0:00:24.5]} 38... b5
{[%clk 0:00:05.1]} 39. axb5 {[%clk 0:00:25.4]} 39... axb5 {[%clk 0:00:06]} 40.
Ne3 {[%clk 0:00:25.5]} 40... Rc3 {[%clk 0:00:06.2]} 41. Rd3 {[%clk 0:00:26]}
41... Rc8 {[%clk 0:00:04.6]} 42. Kd2 {[%clk 0:00:18.1]} 42... Ra8 {[%clk
0:00:05.1]} 43. Nc2 {[%clk 0:00:17.4]} 43... Ne5 {[%clk 0:00:05.4]} 44. Rc3
{[%clk 0:00:17.4]} 44... Rd8+ {[%clk 0:00:05.3]} 45. Ke3 {[%clk 0:00:17.7]}
45... Rb8 {[%clk 0:00:04.9]} 46. Nd4 {[%clk 0:00:17.8]} 46... Rb6 {[%clk
0:00:02.8]} 47. Rc7+ {[%clk 0:00:17.2]} 47... Nd7 {[%clk 0:00:03.7]} 48. Rc8
{[%clk 0:00:17]} 48... Kd6 {[%clk 0:00:03.6]} 49. Rg8 {[%clk 0:00:15.7]} 49...
g5 {[%clk 0:00:04.1]} 50. Rg7 {[%clk 0:00:15.8]} 50... Ra6 {[%clk 0:00:04.4]}
51. Nxb5+ {[%clk 0:00:15.7]} 51... Kc5 {[%clk 0:00:03.8]} 52. Nc7 {[%clk
0:00:14.6]} 52... Ra8 {[%clk 0:00:01.1]} 53. Rxd7 {[%clk 0:00:14.1]} 1-0

[Event "*** Titled Tuesday Blitz"]
[Site "Chess.com"]
[Date "2020.04.14"]
[Round "9"]
[White "Training_Day"]
[Black "Alliswell998"]
[Result "0-1"]
[WhiteElo "2299"]
[BlackElo "2534"]
[TimeControl "180+1"]
[EndTime "11:43:37 PDT"]
[Termination "Alliswell998 won on time"]

1. e4 {[%clk 0:03:00.9]} 1... a6 {[%clk 0:03:00.6]} 2. d4 {[%clk 0:03:00.1]}
2... g6 {[%clk 0:03:01.1]} 3. Bd3 {[%clk 0:02:59.3]} 3... Bg7 {[%clk 0:03:01.7]}
4. Nf3 {[%clk 0:02:59.9]} 4... b5 {[%clk 0:03:02]} 5. c3 {[%clk 0:02:59.1]} 5...
Bb7 {[%clk 0:03:02.6]} 6. O-O {[%clk 0:02:59]} 6... Nf6 {[%clk 0:03:03.1]} 7.
Re1 {[%clk 0:02:58.8]} 7... O-O {[%clk 0:03:03.7]} 8. a4 {[%clk 0:02:58.1]} 8...
bxa4 {[%clk 0:02:59]} 9. Qxa4 {[%clk 0:02:56.3]} 9... d6 {[%clk 0:02:59.4]} 10.
Nbd2 {[%clk 0:02:54.7]} 10... Nbd7 {[%clk 0:02:59.7]} 11. Nf1 {[%clk 0:02:48.5]}
11... e5 {[%clk 0:02:56.3]} 12. Ng3 {[%clk 0:02:45.8]} 12... Re8 {[%clk
0:02:55.1]} 13. h3 {[%clk 0:02:40.1]} 13... Nb6 {[%clk 0:02:50.7]} 14. Qa5
{[%clk 0:02:37.5]} 14... Qd7 {[%clk 0:02:43.5]} 15. Bg5 {[%clk 0:02:17.1]} 15...
h6 {[%clk 0:02:41.5]} 16. Bd2 {[%clk 0:02:13.1]} 16... exd4 {[%clk 0:02:32.3]}
17. cxd4 {[%clk 0:02:12.7]} 17... Nh7 {[%clk 0:02:27.4]} 18. Rac1 {[%clk
0:02:05.3]} 18... Nf8 {[%clk 0:02:21.6]} 19. Rc2 {[%clk 0:01:50.4]} 19... Ne6
{[%clk 0:02:21.8]} 20. Be3 {[%clk 0:01:50.2]} 20... d5 {[%clk 0:02:14.3]} 21. e5
{[%clk 0:01:48.2]} 21... Red8 {[%clk 0:02:02.9]} 22. b3 {[%clk 0:01:43.5]} 22...
Bf8 {[%clk 0:01:59]} 23. Rec1 {[%clk 0:01:42.5]} 23... Rac8 {[%clk 0:01:57.4]}
24. h4 {[%clk 0:01:35.6]} 24... h5 {[%clk 0:01:54.8]} 25. Ng5 {[%clk 0:01:35.4]}
25... Kg7 {[%clk 0:01:47.8]} 26. Nxe6+ {[%clk 0:01:33.3]} 26... Qxe6 {[%clk
0:01:48.7]} 27. Bg5 {[%clk 0:01:29]} 27... Rd7 {[%clk 0:01:46.9]} 28. f4 {[%clk
0:01:22.9]} 28... Qg4 {[%clk 0:01:44.4]} 29. Kh2 {[%clk 0:01:19.4]} 29... Be7
{[%clk 0:01:33.7]} 30. Be2 {[%clk 0:01:17.5]} 30... Qe6 {[%clk 0:01:31.8]} 31.
f5 {[%clk 0:01:17.1]} 31... gxf5 {[%clk 0:01:29.9]} 32. Nxh5+ {[%clk 0:01:16.7]}
32... Kh7 {[%clk 0:01:26.1]} 33. Nf6+ {[%clk 0:01:13.8]} 33... Bxf6 {[%clk
0:01:25.4]} 34. Bxf6 {[%clk 0:01:13.9]} 34... f4 {[%clk 0:01:21.5]} 35. Bd3+
{[%clk 0:01:08.6]} 35... Kh6 {[%clk 0:01:19]} 36. Rf1 {[%clk 0:01:06.4]} 36...
Qg4 {[%clk 0:01:17.7]} 37. Qd2 {[%clk 0:01:02.9]} 37... Qg3+ {[%clk 0:01:07.9]}
38. Kh1 {[%clk 0:00:56.5]} 38... Qe3 {[%clk 0:00:47.1]} 39. Rxf4 {[%clk
0:00:44.5]} 39... Qxd2 {[%clk 0:00:46.7]} 40. Rxd2 {[%clk 0:00:45.4]} 40... c5
{[%clk 0:00:47]} 41. Bf5 {[%clk 0:00:33.2]} 41... cxd4 {[%clk 0:00:37.9]} 42.
Bxd7 {[%clk 0:00:32.1]} 42... Nxd7 {[%clk 0:00:38.8]} 43. Rdxd4 {[%clk
0:00:29.1]} 43... Rc1+ {[%clk 0:00:36.1]} 44. Kh2 {[%clk 0:00:29]} 44... Nc5
{[%clk 0:00:36]} 45. b4 {[%clk 0:00:23.3]} 45... Ne6 {[%clk 0:00:35.7]} 46. Bg5+
{[%clk 0:00:18.3]} 46... Kg7 {[%clk 0:00:33]} 47. Rg4 {[%clk 0:00:15.1]} 47...
Rc2 {[%clk 0:00:27]} 48. Bf6+ {[%clk 0:00:11.1]} 48... Kh7 {[%clk 0:00:23.8]}
49. Rd3 {[%clk 0:00:09.3]} 49... d4 {[%clk 0:00:22.4]} 50. Rdg3 {[%clk 0:00:08]}
50... Be4 {[%clk 0:00:19.9]} 51. Rg8 {[%clk 0:00:06.4]} 51... Kh6 {[%clk
0:00:15.8]} 52. Rh8+ {[%clk 0:00:04]} 52... Bh7 {[%clk 0:00:15.9]} 53. Re8
{[%clk 0:00:01.6]} 53... d3 {[%clk 0:00:15.2]} 54. Bg5+ {[%clk 0:00:01.3]} 54...
Nxg5 {[%clk 0:00:13.4]} 55. hxg5+ {[%clk 0:00:01.5]} 55... Kg6 {[%clk
0:00:13.2]} 0-1

[Event "*** Titled Tuesday Blitz"]
[Site "Chess.com"]
[Date "2020.04.14"]
[Round "9"]
[White "nocnypako"]
[Black "Durarbayli"]
[Result "1-0"]
[WhiteElo "2610"]
[BlackElo "2800"]
[TimeControl "180+1"]
[EndTime "11:43:38 PDT"]
[Termination "nocnypako won on time"]

1. d4 {[%clk 0:02:57.1]} 1... Nf6 {[%clk 0:02:59.7]} 2. c4 {[%clk 0:02:56.3]}
2... e6 {[%clk 0:03:00.1]} 3. Nc3 {[%clk 0:02:56.4]} 3... Bb4 {[%clk 0:02:59]}
4. e3 {[%clk 0:02:56.8]} 4... b6 {[%clk 0:02:58.3]} 5. Ne2 {[%clk 0:02:57.1]}
5... Bb7 {[%clk 0:02:58.2]} 6. a3 {[%clk 0:02:57.9]} 6... Be7 {[%clk 0:02:56.8]}
7. d5 {[%clk 0:02:58.2]} 7... O-O {[%clk 0:02:55.5]} 8. Nf4 {[%clk 0:02:58.5]}
8... e5 {[%clk 0:02:52]} 9. Nd3 {[%clk 0:02:58.4]} 9... d6 {[%clk 0:02:51.8]}
10. Be2 {[%clk 0:02:57.9]} 10... a5 {[%clk 0:02:51.6]} 11. Rb1 {[%clk
0:02:56.3]} 11... Re8 {[%clk 0:02:51.7]} 12. O-O {[%clk 0:02:55.8]} 12... e4
{[%clk 0:02:49.1]} 13. Nf4 {[%clk 0:02:56.1]} 13... Bf8 {[%clk 0:02:48.9]} 14.
f3 {[%clk 0:02:54.9]} 14... exf3 {[%clk 0:02:46.4]} 15. Bxf3 {[%clk 0:02:55.8]}
15... Nbd7 {[%clk 0:02:45.9]} 16. Nd3 {[%clk 0:02:53.9]} 16... Bc8 {[%clk
0:02:01.4]} 17. Nb5 {[%clk 0:02:52.8]} 17... a4 {[%clk 0:01:58.6]} 18. Nd4
{[%clk 0:02:52.5]} 18... Ne4 {[%clk 0:01:41.4]} 19. Bxe4 {[%clk 0:02:49]} 19...
Rxe4 {[%clk 0:01:42.3]} 20. Qf3 {[%clk 0:02:48.5]} 20... Nf6 {[%clk 0:01:40.7]}
21. Nf2 {[%clk 0:02:42.5]} 21... Qe8 {[%clk 0:01:22.7]} 22. Nxe4 {[%clk
0:02:33.7]} 22... Nxe4 {[%clk 0:01:23.6]} 23. Ne6 {[%clk 0:02:26.1]} 23... Nf6
{[%clk 0:01:08.5]} 24. Nxc7 {[%clk 0:02:23.5]} 24... Qd8 {[%clk 0:00:59.7]} 25.
Nxa8 {[%clk 0:02:23.1]} 25... Ba6 {[%clk 0:01:00.3]} 26. e4 {[%clk 0:02:13.1]}
26... Bxc4 {[%clk 0:00:58.1]} 27. Bg5 {[%clk 0:02:12.1]} 27... Bxf1 {[%clk
0:00:57.7]} 28. Rxf1 {[%clk 0:02:13]} 28... Be7 {[%clk 0:00:54.5]} 29. Bxf6
{[%clk 0:02:11.1]} 29... Bxf6 {[%clk 0:00:54.3]} 30. e5 {[%clk 0:02:10.3]} 30...
dxe5 {[%clk 0:00:51.3]} 31. d6 {[%clk 0:02:10.4]} 31... Qxd6 {[%clk 0:00:49.1]}
32. Rd1 {[%clk 0:01:59.9]} 32... Qc5+ {[%clk 0:00:32.1]} 33. Qf2 {[%clk
0:01:55.2]} 33... Qc4 {[%clk 0:00:32.6]} 34. Nxb6 {[%clk 0:01:52.4]} 34... Qb3
{[%clk 0:00:31.4]} 35. Rc1 {[%clk 0:01:25.6]} 35... h5 {[%clk 0:00:22.1]} 36.
Rc8+ {[%clk 0:01:13.7]} 36... Kh7 {[%clk 0:00:22.3]} 37. Qf5+ {[%clk 0:01:13.8]}
37... g6 {[%clk 0:00:16.4]} 38. Qxf6 {[%clk 0:01:14]} 38... Qd1+ {[%clk
0:00:15.5]} 39. Qf1 {[%clk 0:01:13.3]} 39... Qd4+ {[%clk 0:00:16.1]} 40. Kh1
{[%clk 0:01:12.9]} 40... f5 {[%clk 0:00:16.3]} 41. Rc7+ {[%clk 0:01:06]} 41...
Kh6 {[%clk 0:00:15.9]} 42. Nd7 {[%clk 0:00:55.4]} 42... f4 {[%clk 0:00:09.5]}
43. Nf8 {[%clk 0:00:53.5]} 43... Qd6 {[%clk 0:00:07.5]} 44. Rh7+ {[%clk
0:00:50.5]} 44... Kg5 {[%clk 0:00:08.1]} 45. Rf7 {[%clk 0:00:39.2]} 45... Qd5
{[%clk 0:00:06.9]} 46. Rd7 {[%clk 0:00:30]} 46... Qc6 {[%clk 0:00:04.9]} 47. Rg7
{[%clk 0:00:26.9]} 47... Kf5 {[%clk 0:00:05.3]} 48. Rxg6 {[%clk 0:00:22.3]}
48... Qc2 {[%clk 0:00:05.3]} 49. Rg7 {[%clk 0:00:19.1]} 49... Kf6 {[%clk
0:00:04.8]} 50. Rh7 {[%clk 0:00:12.2]} 50... Qxb2 {[%clk 0:00:03.3]} 51. Qa6+
{[%clk 0:00:09.7]} 1-0

[Event "*** Titled Tuesday Blitz"]
[Site "Chess.com"]
[Date "2020.04.14"]
[Round "9"]
[White "BakaPG"]
[Black "LuckSlayeer"]
[Result "1-0"]
[WhiteElo "2724"]
[BlackElo "2575"]
[TimeControl "180+1"]
[EndTime "11:43:38 PDT"]
[Termination "BakaPG won by checkmate"]

1. e4 {[%clk 0:03:00.9]} 1... c5 {[%clk 0:02:58]} 2. Nf3 {[%clk 0:03:00.2]} 2...
Nc6 {[%clk 0:02:56.3]} 3. Nc3 {[%clk 0:02:59.1]} 3... e6 {[%clk 0:02:52.5]} 4.
d4 {[%clk 0:02:58.1]} 4... cxd4 {[%clk 0:02:53.4]} 5. Nxd4 {[%clk 0:02:58.3]}
5... Qc7 {[%clk 0:02:54.1]} 6. Be2 {[%clk 0:02:58.2]} 6... a6 {[%clk 0:02:53.3]}
7. O-O {[%clk 0:02:57.5]} 7... Nf6 {[%clk 0:02:53.5]} 8. Kh1 {[%clk 0:02:56.8]}
8... Be7 {[%clk 0:02:53.3]} 9. f4 {[%clk 0:02:53.1]} 9... d6 {[%clk 0:02:53.7]}
10. Be3 {[%clk 0:02:52]} 10... O-O {[%clk 0:02:53.8]} 11. Qe1 {[%clk 0:02:52.2]}
11... Bd7 {[%clk 0:02:48.5]} 12. Qg3 {[%clk 0:02:50.8]} 12... Kh8 {[%clk
0:02:44.3]} 13. Rae1 {[%clk 0:02:49.2]} 13... b5 {[%clk 0:02:34.7]} 14. a3
{[%clk 0:02:48.4]} 14... b4 {[%clk 0:02:25.2]} 15. axb4 {[%clk 0:02:30.4]} 15...
Nxb4 {[%clk 0:02:25.2]} 16. e5 {[%clk 0:02:22.1]} 16... Nfd5 {[%clk 0:02:23.5]}
17. Nxd5 {[%clk 0:02:14.9]} 17... Nxd5 {[%clk 0:02:20.4]} 18. Bc1 {[%clk
0:02:11.1]} 18... Qc5 {[%clk 0:02:08.6]} 19. c3 {[%clk 0:02:08.6]} 19... a5
{[%clk 0:02:00.3]} 20. Bd3 {[%clk 0:02:06.4]} 20... h6 {[%clk 0:01:49.6]} 21.
Qh3 {[%clk 0:02:01.6]} 21... Kg8 {[%clk 0:01:15.2]} 22. Rf3 {[%clk 0:01:52.9]}
22... f5 {[%clk 0:00:43.2]} 23. exf6 {[%clk 0:01:38.4]} 23... Rxf6 {[%clk
0:00:43.4]} 24. f5 {[%clk 0:01:32.5]} 24... e5 {[%clk 0:00:37.4]} 25. Ne6 {[%clk
0:01:31.2]} 25... Qc8 {[%clk 0:00:32.9]} 26. Be4 {[%clk 0:01:22.3]} 26... Nb6
{[%clk 0:00:08.7]} 27. Bxa8 {[%clk 0:00:58.8]} 27... Nxa8 {[%clk 0:00:09.6]} 28.
Rg3 {[%clk 0:00:55.3]} 28... Bxe6 {[%clk 0:00:09.3]} 29. fxe6 {[%clk 0:00:51.6]}
29... Qxe6 {[%clk 0:00:09.3]} 30. Qh5 {[%clk 0:00:41.9]} 30... Qf7 {[%clk
0:00:07.5]} 31. Qxf7+ {[%clk 0:00:40.8]} 31... Kxf7 {[%clk 0:00:07.6]} 32. Rf3
{[%clk 0:00:38.6]} 32... Rxf3 {[%clk 0:00:07.2]} 33. gxf3 {[%clk 0:00:38.8]}
33... Nb6 {[%clk 0:00:07.8]} 34. f4 {[%clk 0:00:36.6]} 34... exf4 {[%clk
0:00:03.9]} 35. Bxf4 {[%clk 0:00:35.1]} 35... d5 {[%clk 0:00:04.6]} 36. Rf1
{[%clk 0:00:32.4]} 36... Ke6 {[%clk 0:00:04.5]} 37. b3 {[%clk 0:00:28.9]} 37...
Bf6 {[%clk 0:00:03.8]} 38. Be3 {[%clk 0:00:28]} 38... Nd7 {[%clk 0:00:03.7]} 39.
Bd4 {[%clk 0:00:27.2]} 39... Bxd4 {[%clk 0:00:03.8]} 40. cxd4 {[%clk 0:00:26.8]}
40... Nf6 {[%clk 0:00:04.3]} 41. Ra1 {[%clk 0:00:26.1]} 41... Kf5 {[%clk
0:00:04.8]} 42. Rxa5 {[%clk 0:00:24.8]} 42... Ke4 {[%clk 0:00:05.7]} 43. Ra4
{[%clk 0:00:23.6]} 43... Ng4 {[%clk 0:00:05.3]} 44. Kg2 {[%clk 0:00:20.5]} 44...
Ne3+ {[%clk 0:00:05.5]} 45. Kf2 {[%clk 0:00:17]} 45... Nc2 {[%clk 0:00:06.4]}
46. b4 {[%clk 0:00:14.4]} 46... Nxd4 {[%clk 0:00:06.2]} 47. b5 {[%clk
0:00:14.2]} 47... Ke5 {[%clk 0:00:05.7]} 48. Rxd4 {[%clk 0:00:13.5]} 48... Kxd4
{[%clk 0:00:06.1]} 49. b6 {[%clk 0:00:13.9]} 49... Ke4 {[%clk 0:00:06.4]} 50. b7
{[%clk 0:00:14.1]} 50... d4 {[%clk 0:00:07.3]} 51. b8=Q {[%clk 0:00:14.1]} 51...
d3 {[%clk 0:00:07.8]} 52. Qb6 {[%clk 0:00:13.2]} 52... d2 {[%clk 0:00:07.1]} 53.
Qe3+ {[%clk 0:00:14.1]} 53... Kf5 {[%clk 0:00:07.7]} 54. Qxd2 {[%clk 0:00:15]}
54... g5 {[%clk 0:00:08.4]} 55. Qe3 {[%clk 0:00:15.4]} 55... Kg4 {[%clk
0:00:08.8]} 56. h3+ {[%clk 0:00:15.7]} 56... Kh5 {[%clk 0:00:09]} 57. Qf3+
{[%clk 0:00:14.7]} 57... Kh4 {[%clk 0:00:09.4]} 58. Qg4# {[%clk 0:00:13.7]} 1-0